bitfinex/quotes_BTCUSD_20251219
["timestamp","ask_amount","ask_price","bid_price","bid_amount"]
[1766147115686,0.27409,88113.0,88104.0,0.06116528]
[1766147115890,0.10309,88115.0,88104.0,0.00572]
[1766147116264,0.1144388,88115.0,88104.0,0.00572]
[1766147116595,0.10278,88112.0,88100.0,0.06116528]
[1766147116823,0.00572,88114.0,88100.0,0.27121]
[1766147117419,0.00572,88114.0,88099.0,0.06810477]
[1766147117554,0.00572,88114.0,88107.0,0.25987]
[1766147117762,0.027629,88118.0,88109.0,0.25987]
[1766147118010,0.01628059,88118.0,88109.0,0.25987]
[1766147118321,0.0025,88132.0,88116.0,0.34497]
[1766147118550,0.00572,88128.0,88117.0,0.34497]
[1766147118746,0.00572,88128.0,88119.0,0.34497]
[1766147119147,0.00572,88128.0,88120.0,0.25987]
[1766147119378,0.01134738,88126.0,88117.0,0.34497]
[1766147119535,0.01706713,88128.0,88117.0,0.34497]
[1766147119536,0.00572,88128.0,88117.0,0.34497]
[1766147122072,0.01134726,88127.0,88114.0,0.0025]
[1766147122395,0.36738,88124.0,88114.0,0.0025]
[1766147122986,0.36738,88124.0,88113.0,0.0025]
[1766147123963,0.11706,88124.0,88113.0,0.0025]
[1766147125426,0.01134726,88127.0,88115.0,0.0025]
[1766147126035,0.07380289,88128.0,88115.0,0.0025]
[1766147126239,0.32412289,88128.0,88115.0,0.0025]
[1766147126440,0.26738713,88128.0,88115.0,0.0025]
[1766147126654,0.37205,88128.0,88115.0,0.0025]
[1766147126860,0.00572,88128.0,88118.0,0.25987]
[1766147127062,0.00572,88128.0,88119.0,0.60484]
[1766147128509,0.00572,88128.0,88119.0,0.34497]
[1766147130214,0.00572,88128.0,88119.0,0.60484]
[1766147132677,0.00572,88130.0,88124.0,0.25987]
[1766147132895,0.0025,88135.0,88125.0,0.36766503]
[1766147133120,0.00572,88135.0,88125.0,0.60484]
[1766147134246,0.00572,88135.0,88126.0,0.02269477]
[1766147135335,0.00572,88135.0,88125.0,0.34497]
[1766147135760,0.05673179,88134.0,88125.0,0.34497]
[1766147135970,0.001099,88125.0,88122.0,0.00572]
[1766147136129,0.01134648,88133.0,88122.0,0.00572]
[1766147136331,0.3762,88131.0,88122.0,0.00572]
[1766147137352,0.05673437,88130.0,88122.0,0.00572]
[1766147137577,0.3762,88131.0,88122.0,0.004621]
[1766147138908,0.00572,88135.0,88118.0,0.0025]
[1766147139124,0.26283,88134.0,88120.0,0.0025]
[1766147139299,0.01134635,88134.0,88120.0,0.0025]
[1766147139501,0.26283,88131.0,88120.0,0.0025]
[1766147140924,0.37533,88131.0,88120.0,0.0025]
[1766147141963,0.1125,88131.0,88120.0,0.0025]
[1766147142247,0.3749,88134.0,88131.0,0.001099]
[1766147142446,0.3749,88134.0,88123.0,0.36024]
[1766147142853,0.37469,88134.0,88123.0,0.36024]
[1766147143004,0.00572,88135.0,88123.0,0.36024]
[1766147143414,0.38041,88135.0,88123.0,0.01134777]
[1766147143649,0.37469,88134.0,88123.0,0.01134777]
[1766147143828,0.00572,88135.0,88124.0,0.01134764]
[1766147144029,0.37449,88133.0,88122.0,0.06808742]
[1766147144232,0.37449,88133.0,88123.0,0.01134777]
[1766147144475,0.373391,88133.0,88121.0,0.01134803]
[1766147144686,0.373391,88133.0,88120.0,0.05924072]
[1766147144961,0.373391,88133.0,88120.0,0.07058888]
[1766147145114,0.00572,88132.0,88120.0,0.07058888]
[1766147145311,0.26283,88131.0,88120.0,0.0025]
[1766147146594,0.37299,88131.0,88120.0,0.0025]
[1766147149332,0.3724,88129.0,88120.0,0.0025]
[1766147149540,0.001099,88120.0,88117.0,0.00572]
[1766147149734,7.268e-05,88120.0,88117.0,0.00572]
[1766147150199,0.3699,88124.0,88117.0,0.00572]
[1766147150488,0.00572,88127.0,88111.0,0.06116528]
[1766147150489,0.10688,88123.0,88111.0,0.06116528]
[1766147150697,0.26283,88118.0,88111.0,0.06116528]
[1766147151047,0.10669,88117.0,88111.0,0.06116528]
[1766147151451,0.10669,88117.0,88112.0,0.0025]
[1766147152402,1.85673631,88122.0,88109.0,0.00572]
[1766147152403,0.01134816,88120.0,88109.0,0.00572]
[1766147152548,0.36934,88119.0,88109.0,0.00572]
[1766147152965,0.36916,88118.0,88109.0,0.00572]
[1766147153167,0.01134854,88117.0,88109.0,0.00572]
[1766147154023,7.2e-05,88109.0,88104.0,0.0025]
[1766147154171,0.36326,88110.0,88104.0,0.0025]
[1766147154368,0.10043,88110.0,88104.0,0.0025]
[1766147155365,0.10043,88110.0,88104.0,0.00260905]
[1766147155573,0.36326,88110.0,88104.0,0.00260905]
[1766147155954,0.10043,88110.0,88097.0,0.00572]
[1766147156118,7.2e-05,88104.0,88097.0,0.00572]
[1766147156325,0.09723,88105.0,88097.0,0.00572]
[1766147156625,0.00572,88110.0,88105.0,0.001027]
[1766147157065,0.36562,88110.0,88097.0,0.64490112]
[1766147157396,0.10279,88110.0,88099.0,0.63918086]
[1766147157596,0.10279,88110.0,88099.0,0.62783]
[1766147158570,0.10279,88110.0,88099.0,0.36024]
[1766147158966,0.36562,88110.0,88099.0,0.36024]
[1766147159164,0.10279,88110.0,88099.0,0.36024]
[1766147159497,0.0025,88119.0,88104.0,0.26759]
[1766147159675,0.0025,88119.0,88097.0,0.00572]
[1766147159676,0.0025,88117.0,88103.0,0.01135035]
[1766147159876,0.00036379,88119.0,88104.0,0.03405066]
[1766147160101,0.00036379,88119.0,88110.0,0.01134944]
[1766147160304,0.03410185,88125.0,88114.0,0.36024]
[1766147160305,0.00572,88123.0,88114.0,0.36024]
[1766147160599,0.005,88124.0,88115.0,0.02269761]
[1766147160804,0.00572,88125.0,88115.0,0.02269761]
[1766147160984,1.83966841,88130.0,88115.0,0.02269761]
[1766147161194,0.06113018,88163.0,88109.0,0.00572]
[1766147161195,0.22691933,88138.0,88114.0,0.00572]
[1766147161385,0.01134687,88130.0,88115.0,0.62783]
[1766147161584,0.00074,88129.0,88115.0,0.62783]
[1766147161786,0.00572,88129.0,88115.0,0.62783]
[1766147161989,1.82810841,88130.0,88115.0,0.62783]
[1766147161990,1.78806841,88130.0,88115.0,0.62783]
[1766147162191,1.84601528,88130.0,88115.0,0.62783]
[1766147162392,1.80677528,88130.0,88115.0,0.62783]
[1766147162595,0.26855,88130.0,88115.0,0.62783]
[1766147162797,2.05456528,88130.0,88115.0,0.62783]
[1766147163022,2.01612841,88130.0,88115.0,0.62783]
[1766147163294,1.92582841,88130.0,88116.0,0.26759]
[1766147163499,1.92582841,88130.0,88115.0,0.36024]
[1766147163500,0.01134597,88137.0,88125.0,0.36024]
[1766147163698,0.00572,88139.0,88126.0,0.00572]
[1766147163905,0.0287874,88145.0,88133.0,0.37093]
[1766147164103,1.83966841,88160.0,88135.0,0.63959]
[1766147164104,0.06243699,88157.0,88135.0,0.63959]
[1766147164306,0.02908957,88156.0,88137.0,0.63959]
[1766147164489,0.04661887,88155.0,88137.0,0.63959]
[1766147164684,0.01134288,88161.0,88141.0,0.38227545]
[1766147164883,1.85351142,88160.0,88144.0,0.63959]
[1766147165107,0.00634301,88160.0,88144.0,0.63959]
[1766147165321,0.051717,88157.0,88144.0,0.37093]
[1766147165489,0.01134352,88156.0,88144.0,0.37093]
[1766147165850,9.2e-06,88156.0,88144.0,0.37093]
[1766147166050,0.04575886,88158.0,88144.0,0.37093]
[1766147166211,0.06778327,88159.0,88144.0,0.3710392]
[1766147166382,0.05671861,88155.0,88144.0,0.3710392]
[1766147166578,0.03806286,88154.0,88144.0,0.0001092]
[1766147166827,0.01134468,88147.0,88144.0,2e-07]
[1766147167186,0.04662471,88145.0,88134.0,0.04544]
[1766147167390,0.05306864,88147.0,88135.0,0.00822]
[1766147167591,0.01134442,88149.0,88136.0,0.00572]
[1766147167592,0.0467232,88148.0,88136.0,0.00572]
[1766147167816,0.06796327,88154.0,88136.0,0.00572]
[1766147168039,0.06306254,88155.0,88137.0,0.63959]
[1766147168234,0.00624365,88155.0,88137.0,0.63969914]
[1766147168438,0.0049,88155.0,88137.0,0.63969914]
[1766147168756,0.0351195,88154.0,88137.0,0.63969914]
[1766147168903,0.05743841,88155.0,88137.0,0.63969914]
[1766147169098,0.04161904,88154.0,88137.0,0.63969914]
[1766147169306,0.04440206,88155.0,88137.0,0.63969914]
[1766147169507,0.04306275,88154.0,88137.0,0.63969914]
[1766147169711,0.00634378,88154.0,88137.0,0.63969914]
[1766147169930,0.00572,88155.0,88137.0,0.63969914]
[1766147170154,0.05445839,88156.0,88137.0,0.63969914]
[1766147170350,0.00322,88156.0,88137.0,0.63969914]
[1766147170526,0.05221,88155.0,88137.0,0.63969914]
[1766147170728,0.02211,88155.0,88137.0,0.63969914]
[1766147170947,0.00562,88158.0,88141.0,0.26866]
[1766147171220,0.00562,88158.0,88142.0,0.00572]
[1766147171417,0.06806099,88157.0,88142.0,0.00572]
[1766147171612,0.01134391,88153.0,88142.0,0.00572]
[1766147171816,0.05671949,88154.0,88143.0,0.00572]
[1766147172084,0.01134378,88154.0,88143.0,0.00572]
[1766147172870,0.02097391,88153.0,88143.0,0.00572]
[1766147173195,0.00963,88152.0,88143.0,0.00572]
[1766147173520,0.00597365,88155.0,88143.0,0.00572]
[1766147173716,0.0025,88157.0,88143.0,0.00572]
[1766147173919,0.05671804,88156.0,88143.0,0.00572]
[1766147174137,0.0025,88157.0,88143.0,0.00572]
[1766147174343,0.01134378,88154.0,88143.0,0.00572]
[1766147174800,0.01134391,88153.0,88143.0,0.00572]
[1766147175011,0.01134404,88152.0,88143.0,0.00572]
[1766147175442,0.05672177,88150.0,88143.0,0.00572]
[1766147175712,0.00634442,88149.0,88143.0,0.00572]
[1766147175923,0.00114,88149.0,88143.0,0.00572]
[1766147176141,0.06806687,88149.0,88132.0,0.0025]
[1766147176350,1.89639023,88150.0,88134.0,0.0025]
[1766147176351,1.8510127,88150.0,88134.0,0.0025]
[1766147176584,0.01134442,88149.0,88136.0,0.0025]
[1766147176800,0.06806703,88149.0,88136.0,0.0025]
[1766147177206,0.01134442,88149.0,88136.0,0.0025]
[1766147177486,0.05672397,88147.0,88136.0,0.0025]
[1766147177691,0.01134481,88146.0,88137.0,0.00572]
[1766147177969,0.01134468,88147.0,88137.0,0.00572]
[1766147178240,0.01134481,88146.0,88137.0,0.00572]
[1766147178422,0.06806869,88147.0,88137.0,0.00572]
[1766147178995,0.06806869,88147.0,88127.0,0.28000726]
[1766147178996,0.00864584,88138.0,88126.0,0.04544]
[1766147179192,0.01134558,88140.0,88126.0,0.04544]
[1766147179193,1.83860182,88140.0,88127.0,0.00572]
[1766147179370,1.90667558,88140.0,88127.0,0.00572]
[1766147179570,1.8499474,88140.0,88127.0,0.00572]
[1766147179781,0.05672655,88144.0,88127.0,0.00572]
[1766147179959,0.07056966,88145.0,88128.0,0.30301]
[1766147180160,0.0025,88145.0,88132.0,0.30301]
[1766147180374,0.0025,88145.0,88133.0,0.00572]
[1766147180771,0.01134404,88152.0,88133.0,0.00572]
[1766147180772,0.0567067,88173.0,88156.0,0.30301]
[1766147181013,0.04544,88187.0,88149.0,0.06806652]
[1766147181014,1.83860182,88170.0,88157.0,0.00572]
[1766147181194,0.00476,88169.0,88158.0,0.00572]
[1766147182213,0.01134249,88164.0,88143.0,0.05672594]
[1766147182523,0.05671231,88165.0,88148.0,0.0025]
[1766147182524,0.06805423,88165.0,88148.0,0.0025]
[1766147182890,0.06805359,88166.0,88148.0,0.0025]
[1766147183104,0.02655,88165.0,88148.0,0.0025]
[1766147183914,0.02854,88164.0,88148.0,0.0025]
[1766147186363,0.02854,88164.0,88148.0,0.01384455]
[1766147186573,0.02854,88164.0,88148.0,0.0025]
[1766147186733,1.83791673,88160.0,88147.0,0.00572]
[1766147187537,1.84925974,88160.0,88147.0,0.00572]
[1766147187807,0.01134429,88150.0,88140.0,0.03244178]
[1766147187958,0.02735,88149.0,88141.0,0.00572]
[1766147188459,0.02735,88149.0,88142.0,0.00572]
[1766147188659,0.02735,88149.0,88143.0,0.00572]
[1766147193859,0.0025,88155.0,88143.0,0.00572]
[1766147194082,0.0025,88152.0,88143.0,0.00572]
[1766147194255,0.0025,88152.0,88134.0,0.11351761]
[1766147194256,0.01134455,88148.0,88131.0,0.0025]
[1766147194489,1.83791673,88141.0,88131.0,0.0025]
[1766147195633,1.83791673,88141.0,88131.0,0.00260914]
[1766147196310,1.85719673,88141.0,88131.0,0.00260914]
[1766147196798,1.92526956,88141.0,88131.0,0.00260914]
[1766147196979,0.01134558,88140.0,88131.0,0.00260914]
[1766147197170,1.85719673,88141.0,88131.0,0.00260914]
[1766147198360,0.01134481,88146.0,88131.0,0.00260914]
[1766147198562,0.06806865,88147.0,88131.0,0.00260914]
[1766147198836,0.06806832,88147.0,88131.0,0.00260914]
[1766147199162,0.01134494,88145.0,88131.0,0.00260914]
[1766147199657,0.01134532,88142.0,88131.0,0.00260914]
[1766147200060,0.06807203,88142.0,88131.0,0.00260914]
[1766147200262,0.06807124,88143.0,88131.0,0.00260914]
[1766147200859,0.08502062,88144.0,88131.0,0.00260914]
[1766147201052,0.02829507,88144.0,88131.0,0.00260914]
[1766147201529,0.01695,88144.0,88131.0,0.00260914]
[1766147202589,0.01134455,88148.0,88133.0,0.0025]
[1766147202791,0.01134494,88145.0,88133.0,0.0025]
[1766147202998,0.05672472,88145.0,88133.0,0.0025]
[1766147203199,0.01597,88144.0,88133.0,0.0025]
[1766147203425,0.01597,88142.0,88131.0,0.00010914]
[1766147204099,0.02699558,88140.0,88131.0,0.00010914]
[1766147204527,0.08372353,88140.0,88131.0,0.00010914]
[1766147204701,0.01565,88139.0,88130.0,0.00572]
[1766147205123,0.01544,88138.0,88130.0,0.00572]
[1766147205362,0.01544,88138.0,88131.0,0.0025]
[1766147205485,0.02678584,88138.0,88131.0,0.0025]
[1766147205692,0.01544,88138.0,88131.0,0.0025]
[1766147207820,0.01134738,88126.0,88117.0,0.06116528]
[1766147208009,0.01134738,88126.0,88118.0,0.00567]
[1766147208010,0.01445,88126.0,88118.0,0.00567]
[1766147208233,0.01445,88126.0,88119.0,0.00572]
[1766147208425,0.05673363,88132.0,88119.0,0.00572]
[1766147208566,0.01134661,88132.0,88120.0,0.30472]
[1766147208765,0.06807993,88132.0,88120.0,0.30472]
[1766147208977,0.01983,88133.0,88119.0,0.36505]
[1766147211412,0.0143,88132.0,88119.0,0.36505]
[1766147211922,1.83791673,88130.0,88119.0,0.00572]
[1766147212921,0.01706648,88133.0,88120.0,0.30472]
[1766147212922,0.00572,88133.0,88120.0,0.30472]
[1766147213101,0.00572,88133.0,88119.0,0.36505]
[1766147213102,0.01134468,88147.0,88128.0,0.30472]
[1766147213351,0.00572,88149.0,88133.0,0.35933]
[1766147213548,1.83791673,88150.0,88134.0,0.02269271]
[1766147213849,0.01134597,88149.0,88134.0,0.02269271]
[1766147213996,0.0025,88149.0,88134.0,0.02269271]
[1766147214198,0.01134468,88147.0,88133.0,0.66405]
[1766147214920,0.06806765,88148.0,88133.0,0.66405]
[1766147215672,0.01134468,88147.0,88133.0,0.66405]
[1766147216352,0.06806765,88148.0,88133.0,0.66405]
[1766147216724,0.01134468,88147.0,88133.0,0.66405]
[1766147217359,0.06806765,88148.0,88133.0,0.66405]
[1766147217562,0.02357442,88149.0,88133.0,0.66405]
[1766147218274,0.01134455,88148.0,88133.0,0.66405]
[1766147218852,0.0802968,88149.0,88133.0,0.66405]
[1766147219151,0.01134468,88147.0,88133.0,0.66405]
[1766147219388,0.01154,88147.0,88133.0,0.66405]
[1766147222298,0.01154,88147.0,88134.0,0.30472]
[1766147222525,0.0025,88149.0,88135.0,0.00572]
[1766147222725,0.01049,88148.0,88135.0,0.00572]
[1766147223057,0.0025,88149.0,88135.0,0.00572]
[1766147223194,0.0025,88149.0,88137.0,0.30472]
[1766147226170,0.06806428,88152.0,88139.0,0.29911]
[1766147226171,0.0025,88152.0,88139.0,0.29911]
[1766147226296,0.00572,88157.0,88141.0,0.29911]
[1766147226495,0.00572,88157.0,88142.0,0.00572]
[1766147226496,0.0025,88156.0,88142.0,0.00572]
[1766147227742,1.83791673,88152.0,88142.0,0.00572]
[1766147228401,1.84926077,88152.0,88142.0,0.00572]
[1766147228810,0.01134417,88151.0,88142.0,0.00572]
[1766147229013,1.84926077,88152.0,88142.0,0.00572]
[1766147229436,1.90598109,88152.0,88142.0,0.00572]
[1766147230308,1.83791673,88152.0,88142.0,0.00572]
[1766147230524,0.05671829,88155.0,88142.0,0.00572]
[1766147230733,0.01134365,88155.0,88142.0,0.00572]
[1766147230879,0.0705616,88156.0,88142.0,0.00572]
[1766147231090,0.01134365,88155.0,88142.0,0.00572]
[1766147231285,0.06806246,88155.0,88142.0,0.00572]
[1766147231680,0.01134365,88155.0,88142.0,0.00572]
[1766147232005,0.0025,88156.0,88144.0,0.66051]
[1766147233227,0.00260916,88156.0,88144.0,0.66051]
[1766147234972,0.01395268,88156.0,88144.0,0.66051]
[1766147235309,0.07067033,88156.0,88142.0,0.00572]
[1766147235648,0.00010916,88156.0,88144.0,0.3614]
[1766147235850,0.00010916,88156.0,88145.0,0.29911]
[1766147236427,0.00010916,88156.0,88151.0,0.29911]
[1766147237020,0.00010916,88156.0,88150.0,0.00572]
[1766147237021,0.0025,88166.0,88155.0,0.29911]
[1766147237398,0.0025,88166.0,88156.0,0.00572]
[1766147237599,0.00572,88167.0,88156.0,0.00572]
[1766147238011,0.0025,88166.0,88156.0,0.00572]
[1766147239266,0.01384224,88166.0,88156.0,0.00572]
[1766147239468,0.0025,88166.0,88156.0,0.00572]
[1766147240294,0.01134262,88163.0,88156.0,0.00572]
[1766147240447,0.07055358,88166.0,88156.0,0.00572]
[1766147240653,0.06805437,88165.0,88156.0,0.00572]
[1766147241050,0.07055358,88166.0,88156.0,0.00572]
[1766147241051,0.01384224,88166.0,88156.0,0.00572]
[1766147241384,0.01134262,88163.0,88156.0,0.00572]
[1766147241793,0.01134404,88152.0,88137.0,0.04544]
[1766147241990,0.01134442,88149.0,88138.0,0.00572]
[1766147242192,0.01134468,88147.0,88138.0,0.00572]
[1766147242400,0.06806587,88150.0,88138.0,0.29109]
[1766147242590,0.01134455,88148.0,88139.0,0.28537]
[1766147242902,0.01134429,88150.0,88140.0,0.37854]
[1766147243055,0.05671956,88153.0,88138.0,0.00572]
[1766147243247,0.01134391,88153.0,88138.0,0.00572]
[1766147243555,0.01134404,88152.0,88142.0,0.28537]
[1766147243878,0.06806128,88156.0,88146.0,0.28537]
[1766147244266,0.07056044,88157.0,88146.0,0.66391]
[1766147245347,0.07056055,88157.0,88146.0,0.66391]
[1766147245475,0.0025,88159.0,88148.0,0.37854]
[1766147245673,0.0025,88159.0,88152.0,0.66391]
[1766147246109,0.0025,88159.0,88152.0,0.37854]
[1766147246320,0.001099,88152.0,88145.0,0.00572]
[1766147246640,0.01134417,88151.0,88142.0,0.37854]
[1766147246841,0.01134417,88151.0,88146.0,0.00572]
[1766147247137,0.01134391,88153.0,88146.0,0.00572]
[1766147247290,0.05672361,88147.0,88133.0,0.66641]
[1766147247636,0.05672724,88142.0,88134.0,0.0025]
[1766147247838,0.02949602,88141.0,88135.0,0.00572]
[1766147247981,0.01815057,88141.0,88135.0,0.00572]
[1766147248632,0.01134494,88145.0,88135.0,0.00572]
[1766147248792,0.06807017,88145.0,88135.0,0.00572]
[1766147248992,0.06806945,88146.0,88135.0,0.00572]
[1766147249310,0.01134507,88144.0,88135.0,0.00572]
[1766147249876,0.0113452,88143.0,88130.0,0.0025]
[1766147250129,0.0113452,88143.0,88131.0,0.00572]
[1766147250553,0.01134532,88142.0,88131.0,0.00572]
[1766147250760,0.06807124,88143.0,88131.0,0.00572]
[1766147251280,0.01134532,88142.0,88131.0,0.00572]
[1766147251664,0.04538338,88149.0,88132.0,0.37854]
[1766147251862,0.0113452,88143.0,88132.0,0.37854]
[1766147252683,0.01134532,88142.0,88132.0,0.37854]
[1766147252890,0.01134545,88141.0,88132.0,0.37854]
[1766147253500,0.056728,88140.0,88128.0,0.00010916]
[1766147253721,0.06807246,88142.0,88130.0,0.00572]
[1766147254062,0.01134545,88141.0,88130.0,0.00572]
[1766147254468,0.06807246,88142.0,88130.0,0.00572]
[1766147254703,0.00572,88144.0,88130.0,0.00572]
[1766147254897,0.01706507,88144.0,88130.0,0.00572]
[1766147255099,0.07379073,88144.0,88130.0,0.00572]
[1766147255492,0.01706507,88144.0,88130.0,0.29922]
[1766147255694,0.00572,88144.0,88131.0,0.02269349]
[1766147255900,0.01706507,88144.0,88130.0,0.29922]
[1766147256449,0.0113452,88143.0,88130.0,0.00572]
[1766147256864,0.06807128,88143.0,88130.0,0.02841374]
[1766147257198,0.01134532,88142.0,88130.0,0.02841374]
[1766147257445,0.06807128,88143.0,88130.0,0.02841374]
[1766147257899,0.01134545,88141.0,88130.0,0.02841374]
[1766147258242,0.01134558,88140.0,88130.0,0.00572]
[1766147258444,0.01134571,88139.0,88130.0,0.00572]
[1766147258689,0.06807402,88140.0,88130.0,0.00572]
[1766147258865,0.06807475,88139.0,88130.0,0.00572]
[1766147259035,0.06807538,88138.0,88130.0,0.00572]
[1766147259355,0.01134584,88138.0,88130.0,0.00572]
[1766147259569,0.06807475,88139.0,88130.0,0.00572]
[1766147260554,0.01134597,88137.0,88128.0,0.00572]
[1766147261207,0.05672994,88137.0,88128.0,0.00572]
[1766147261420,0.06807506,88138.0,88128.0,0.00572]
[1766147262517,0.01134584,88138.0,88128.0,0.00572]
[1766147262658,0.00572,88139.0,88128.0,0.00572]
[1766147262864,0.07379433,88139.0,88128.0,0.00572]
[1766147263915,0.01706571,88139.0,88128.0,0.00572]
[1766147264135,0.01134584,88138.0,88128.0,0.00572]
[1766147264492,0.07379432,88139.0,88128.0,0.00572]
[1766147265722,0.07379432,88139.0,88128.0,0.02841426]
[1766147265723,0.00572,88139.0,88128.0,0.02841426]
[1766147265931,0.00572,88139.0,88128.0,0.32191426]
[1766147266112,0.05672522,88145.0,88128.0,0.29922]
[1766147266295,0.00822,88144.0,88133.0,0.2935]
[1766147266497,0.0025,88144.0,88134.0,0.00572]
[1766147266726,0.0025,88144.0,88134.0,0.32191271]
[1766147266920,0.0025,88144.0,88134.0,0.29922]
[1766147267489,0.0025,88145.0,88135.0,0.02269246]
[1766147267887,0.0025,88145.0,88135.0,0.31619246]
[1766147268097,0.0025,88145.0,88135.0,0.2935]
[1766147271141,0.01384494,88145.0,88135.0,0.2935]
[1766147271348,0.01134507,88144.0,88135.0,0.2935]
[1766147271550,0.06807099,88144.0,88134.0,0.00572]
[1766147272551,0.01134507,88144.0,88134.0,0.00572]
[1766147272771,0.07056976,88145.0,88134.0,0.00572]
[1766147272970,0.01134507,88144.0,88134.0,0.00572]
[1766147273605,0.07056976,88145.0,88134.0,0.00572]
[1766147274208,0.0025,88145.0,88134.0,0.00572]
[1766147274406,0.01384494,88145.0,88134.0,0.00572]
[1766147274828,0.0025,88145.0,88134.0,0.00572]
[1766147276001,0.01134404,88152.0,88135.0,0.661]
[1766147276205,0.04538338,88150.0,88136.0,0.661]
[1766147276426,0.04538338,88150.0,88137.0,0.02269194]
[1766147276855,0.05672436,88146.0,88134.0,0.00572]
[1766147277047,0.06806917,88146.0,88134.0,0.00572]
[1766147277250,0.01134494,88145.0,88134.0,0.00572]
[1766147277697,0.0113452,88143.0,88134.0,0.00572]
[1766147277869,0.01134494,88145.0,88134.0,0.00572]
[1766147278051,0.01134507,88144.0,88134.0,0.00572]
[1766147278251,0.06807009,88145.0,88134.0,0.00572]
[1766147279492,0.0025,88145.0,88134.0,0.00572]
[1766147280378,0.04538338,88136.0,88125.0,0.0025]
[1766147280581,0.05673389,88131.0,88119.0,0.06688528]
[1766147280798,1.90666847,88130.0,88119.0,0.06688528]
[1766147281036,0.01134764,88124.0,88119.0,0.00572]
[1766147281189,0.01134713,88128.0,88115.0,0.00572]
[1766147281375,0.01134751,88125.0,88115.0,0.00577365]
[1766147281586,0.06808407,88127.0,88115.0,0.00577365]
[1766147281789,0.01134738,88126.0,88115.0,0.00577365]
[1766147282305,0.06808407,88127.0,88115.0,0.00577365]
[1766147282522,0.06808356,88127.0,88116.0,0.0025]
[1766147282762,0.01134738,88126.0,88116.0,0.0025]
[1766147282975,0.04538338,88122.0,88108.0,0.00572]
[1766147283126,0.04538338,88122.0,88108.0,0.29958379]
[1766147283325,0.04538338,88122.0,88109.0,0.2935]
[1766147283545,0.00572,88125.0,88109.0,0.661]
[1766147283788,0.00572,88125.0,88110.0,0.2935]
[1766147284453,0.01706751,88125.0,88110.0,0.2935]
[1766147284854,0.01706751,88125.0,88111.0,0.0025]
[1766147284855,0.00572,88125.0,88111.0,0.0025]
[1766147285424,0.00572,88125.0,88111.0,0.65368]
[1766147285625,0.01706751,88125.0,88111.0,0.65368]
[1766147285829,0.00572,88125.0,88111.0,0.65368]
[1766147286083,0.07380545,88125.0,88111.0,0.65368]
[1766147286227,0.01134777,88123.0,88111.0,0.65368]
[1766147286428,0.01134764,88124.0,88111.0,0.65368]
[1766147287024,0.01706751,88125.0,88111.0,0.65368]
[1766147287396,0.00572,88125.0,88111.0,0.65368]
[1766147288148,0.00572,88126.0,88111.0,0.65368]
[1766147288359,1.84993272,88140.0,88116.0,0.0025]
[1766147288564,0.07379288,88141.0,88120.0,1.89782738]
[1766147288813,0.01384558,88140.0,88123.0,0.35773]
[1766147289061,0.01384558,88140.0,88121.0,0.09078415]
[1766147289062,0.01384558,88140.0,88126.0,0.29345]
[1766147289268,0.06807391,88140.0,88127.0,0.02269452]
[1766147289603,0.01134571,88139.0,88127.0,0.02269452]
[1766147290213,0.0025,88140.0,88127.0,0.02269452]
[1766147290669,0.0025,88140.0,88128.0,0.65118]
[1766147290897,0.0025,88140.0,88126.0,0.01134738]
[1766147290898,0.01134429,88150.0,88131.0,0.29345]
[1766147291032,0.01134429,88150.0,88136.0,0.29345]
[1766147291234,0.05110338,88149.0,88137.0,0.67387194]
[1766147291551,0.0025,88148.0,88137.0,0.65118]
[1766147292544,0.0025,88148.0,88138.0,0.02269168]
[1766147293545,0.06805892,88159.0,88141.0,0.29345]
[1766147293785,0.08620608,88164.0,88148.0,0.35773]
[1766147293990,0.00572,88159.0,88149.0,0.02268885]
[1766147295512,0.02949306,88164.0,88149.0,0.02268885]
[1766147295654,0.00572,88161.0,88149.0,0.02268885]
[1766147297844,0.00572,88161.0,88149.0,0.31613885]
[1766147298047,0.00572,88161.0,88149.0,0.29345]
[1766147298795,0.00572,88161.0,88148.0,0.35773]
[1766147299040,0.00572,88161.0,88149.0,0.02268885]
[1766147299727,0.001099,88149.0,88133.0,0.0025]
[1766147299947,0.001099,88149.0,88135.0,0.0025]
[1766147300149,0.05672299,88148.0,88135.0,0.0025]
[1766147300413,0.01134455,88148.0,88135.0,0.0025]
[1766147300612,0.06806704,88149.0,88135.0,0.0025]
[1766147300813,0.06806704,88149.0,88134.0,0.00572]
[1766147300814,0.06806832,88147.0,88134.0,0.00572]
[1766147301011,0.01134481,88146.0,88134.0,0.00572]
[1766147301451,0.01134494,88145.0,88134.0,0.00572]
[1766147301649,0.06806935,88146.0,88134.0,0.00572]
[1766147302062,0.01134494,88145.0,88134.0,0.00572]
[1766147302636,0.0737893,88147.0,88134.0,0.00572]
[1766147302859,0.01706468,88147.0,88134.0,0.00572]
[1766147303067,0.01134481,88146.0,88134.0,0.00572]
[1766147303403,0.01134494,88145.0,88134.0,0.00572]
[1766147303564,0.06806898,88146.0,88134.0,0.00572]
[1766147303960,0.01134481,88146.0,88134.0,0.00572]
[1766147304551,0.01134507,88144.0,88134.0,0.00572]
[1766147304892,0.06807018,88145.0,88134.0,0.00572]
[1766147305387,0.01134494,88145.0,88134.0,0.00572]
[1766147305887,0.01134532,88142.0,88134.0,0.00572]
[1766147306086,0.01134532,88142.0,88129.0,0.04544]
[1766147306533,0.01134545,88141.0,88129.0,0.04544]
[1766147307175,0.06807276,88141.0,88129.0,0.04544]
[1766147307380,0.01134558,88140.0,88129.0,0.04544]
[1766147307537,1.83861968,88140.0,88129.0,0.04544]
[1766147307753,0.01134545,88141.0,88129.0,0.04544]
[1766147308160,1.83861968,88140.0,88129.0,0.04544]
[1766147309802,1.84996526,88140.0,88120.0,0.01134816]
[1766147310005,0.01134648,88133.0,88121.0,0.0025]
[1766147310180,0.06807774,88135.0,88121.0,0.0025]
[1766147310360,0.01134635,88134.0,88121.0,0.0025]
[1766147310901,0.06807774,88135.0,88121.0,0.0025]
[1766147311323,0.01134635,88134.0,88121.0,0.0025]
[1766147311465,0.0170661,88136.0,88121.0,0.0025]
[1766147312263,0.01717521,88136.0,88121.0,0.0025]
[1766147312461,0.01134635,88134.0,88121.0,0.0025]